bitfinex/quotes_SOLUSD_20220114
["timestamp","ask_amount","ask_price","bid_price","bid_amount"]
[1642182314732,16.4945,146.46,146.4,0.02]
[1642182318633,19.2255,146.46,146.4,0.02]
[1642182319637,16.4945,146.46,146.4,0.02]
[1642182320638,2.731,146.45,146.4,0.02]
[1642182320837,10.2475,146.43,146.4,0.02]
[1642182321037,23.39337753,146.42,146.4,0.02]
[1642182321438,29.64337753,146.42,146.4,0.02]
[1642182323441,39.89077753,146.42,146.4,0.02]
[1642182323841,16.4974,146.42,146.4,0.02]
[1642182324041,6.0,146.42,146.41,3.03219996]
[1642182324441,2.731,146.46,146.41,3.03219996]
[1642182324643,6.0,146.45,146.41,3.03219996]
[1642182325242,6.0,146.46,146.41,3.03219996]
[1642182325443,7.83662072,146.47,146.41,3.03219996]
[1642182326044,7.83662072,146.47,146.41,13.27399996]
[1642182326243,6.0,146.47,146.41,13.27399996]
[1642182326444,7.83662072,146.48,146.41,13.52399996]
[1642182326682,1.83662072,146.48,146.41,13.27399996]
[1642182326877,7.83662072,146.48,146.41,13.27399996]
[1642182327384,6.0,146.48,146.41,22.719379]
[1642182327579,0.25,146.48,146.41,22.969379]
[1642182327780,0.25,146.48,146.42,12.591]
[1642182327977,31.1658,146.5,146.44,10.2394]
[1642182328179,31.1658,146.5,146.44,16.8024]
[1642182328877,30.9158,146.5,146.44,16.8024]
[1642182329079,6.0,146.5,146.44,17.0524]
[1642182329278,6.0,146.5,146.47,10.2362]
[1642182329479,7.83662072,146.52,146.48,3.03219997]
[1642182329679,1.83662072,146.52,146.48,3.03219997]
[1642182330480,1.83662072,146.52,146.49,10.2362]
[1642182330983,1.83662072,146.54,146.5,3.03219997]
[1642182331382,7.83662072,146.54,146.5,3.03219997]
[1642182331881,8.08662072,146.54,146.5,3.03219997]
[1642182332080,8.08662072,146.54,146.48,12.967]
[1642182332282,6.25,146.54,146.48,12.967]
[1642182332481,0.25,146.54,146.48,12.967]
[1642182332784,6.25,146.54,146.48,12.967]
[1642182333081,8.08662072,146.54,146.48,12.967]
[1642182333280,2.08662072,146.54,146.48,10.237]
[1642182335183,1.83662072,146.54,146.49,4.12440565]
[1642182335385,1.83662072,146.54,146.5,2.73]
[1642182335583,3.63975474,146.58,146.51,75.86]
[1642182335783,3.63975474,146.58,146.52,2.729]
[1642182335983,3.63975474,146.58,146.52,15.33]
[1642182336184,3.63975474,146.6,146.53,9.86]
[1642182336386,3.63975474,146.6,146.54,2.729]
[1642182336585,3.63975474,146.6,146.57,10.2298]
[1642182336785,3.63975474,146.6,146.55,9.86]
[1642182336993,3.63975474,146.6,146.52,10.11]
[1642182337185,9.63975474,146.6,146.53,0.25]
[1642182337387,9.63975474,146.6,146.52,10.11]
[1642182337820,6.25,146.6,146.55,10.232]
[1642182337990,0.25,146.6,146.55,10.232]
[1642182338188,6.25,146.6,146.55,10.232]
[1642182338388,25.6449,146.62,146.55,10.232]
[1642182338690,31.6449,146.62,146.55,10.232]
[1642182340891,31.6449,146.62,146.53,10.2329]
[1642182341089,31.6449,146.62,146.53,10.4829]
[1642182342492,31.6449,146.62,146.53,13.2109]
[1642182343391,28.9169,146.62,146.53,13.2109]
[1642182343991,28.6669,146.62,146.53,13.2109]
[1642182345393,39.1501,146.62,146.53,12.9609]
[1642182345595,2.728,146.61,146.51,10.2344]
[1642182345795,2.728,146.61,146.48,28.56548366]
[1642182345995,2.728,146.61,146.48,31.29448366]
[1642182345996,23.1573,146.6,146.48,31.29448366]
[1642182346193,2.729,146.59,146.48,27.4057]
[1642182346396,12.9647,146.59,146.48,27.4057]
[1642182346597,21.72072976,146.58,146.48,27.4057]
[1642182346794,2.729,146.57,146.48,27.4057]
[1642182347093,2.729,146.57,146.48,2.729]
[1642182347094,2.979,146.57,146.48,2.729]
[1642182347298,8.979,146.57,146.48,2.729]
[1642182347695,19.216,146.57,146.48,2.729]
[1642182348496,19.216,146.57,146.45,37.5567]
[1642182348697,19.216,146.57,146.46,10.2382]
[1642182349097,19.216,146.57,146.46,10.4882]
[1642182349299,19.216,146.57,146.46,0.25]
[1642182349496,19.216,146.57,146.45,27.3182]
[1642182350800,22.85575474,146.57,146.45,2.729]
[1642182350997,22.85575474,146.57,146.45,2.979]
[1642182351198,90.44575474,146.57,146.45,2.979]
[1642182351697,90.44575474,146.57,146.45,0.25]
[1642182351898,90.44575474,146.57,146.44,12.84]
[1642182352099,90.44575474,146.57,146.44,12.59]
[1642182352300,67.59,146.55,146.44,2.73]
[1642182352500,10.2418,146.5,146.41,6.61878366]
[1642182352699,10.4918,146.5,146.41,6.61878366]
[1642182352928,16.4918,146.5,146.41,6.86878366]
[1642182353128,43.83978334,146.5,146.41,33.42215462]
[1642182353329,43.83978334,146.5,146.41,43.66335462]
[1642182353729,43.83978334,146.5,146.41,39.77457096]
[1642182356131,43.83978334,146.5,146.41,13.2212]
[1642182356330,43.83978334,146.5,146.41,2.73]
[1642182356932,2.731,146.49,146.41,2.73]
[1642182357131,10.2437,146.47,146.41,2.73]
[1642182357332,10.2437,146.47,146.4,2.751]
[1642182357533,16.4937,146.47,146.4,3.001]
[1642182357932,16.4937,146.47,146.4,0.27]
[1642182358535,6.25,146.47,146.4,3.001]
[1642182358733,6.25,146.47,146.4,0.02]
[1642182358936,6.25,146.47,146.4,0.27]
[1642182359335,6.25,146.47,146.4,10.5125]
[1642182359539,0.25,146.47,146.4,0.27]
[1642182359738,6.25,146.47,146.4,0.27]
[1642182359938,6.25,146.47,146.4,0.02]
[1642182360337,0.25,146.47,146.4,0.02]
[1642182361142,33.5683,146.49,146.4,0.02]
[1642182361341,24.8373,146.49,146.4,0.02]
[1642182361643,24.8373,146.49,146.4,10.2626]
[1642182361841,24.8373,146.49,146.4,21.81376865]
[1642182362042,24.8373,146.49,146.4,22.06376865]
[1642182362241,12.9718,146.52,146.4,22.06376865]
[1642182362441,18.9718,146.52,146.4,22.06376865]
[1642182363344,18.9718,146.52,146.44,10.2397]
[1642182363546,19.2218,146.52,146.44,10.2397]
[1642182365645,8.981,146.52,146.44,10.2397]
[1642182367851,8.981,146.52,146.44,20.0997]
[1642182369050,6.25,146.52,146.44,20.0997]
[1642182369452,0.25,146.52,146.44,20.3497]
[1642182369651,6.25,146.52,146.44,20.3497]
[1642182369852,6.0,146.52,146.44,20.3497]
[1642182370151,6.25,146.52,146.44,20.3497]
[1642182370354,0.25,146.52,146.44,20.0997]
[1642182370553,6.25,146.52,146.44,20.0997]
[1642182370751,8.98,146.52,146.44,20.0997]
[1642182371779,6.25,146.52,146.44,20.0997]
[1642182371979,0.25,146.52,146.44,20.0997]
[1642182372176,6.25,146.52,146.44,20.0997]
[1642182372378,6.0,146.52,146.44,20.3497]
[1642182372577,6.25,146.52,146.44,20.3497]
[1642182372776,0.25,146.52,146.45,2.73]
[1642182372976,6.25,146.52,146.45,13.2186]
[1642182373577,6.25,146.52,146.45,23.0786]
[1642182373779,6.25,146.52,146.45,20.3486]
[1642182374179,0.25,146.52,146.45,20.3486]
[1642182374377,29.127,146.54,146.45,20.3486]
[1642182375877,6.0,146.54,146.45,87.9386]
[1642182376077,8.73,146.55,146.45,87.9386]
[1642182376278,0.25,146.54,146.46,2.73]
[1642182376484,0.25,146.54,146.47,9.86]
[1642182376678,0.25,146.54,146.49,22.98003988]
[1642182376879,30.9971,146.56,146.49,22.98003988]
[1642182377077,30.9971,146.56,146.49,23.23003988]
[1642182377277,30.9971,146.56,146.49,22.98003988]
[1642182377480,6.0,146.56,146.49,23.23003988]
[1642182377678,6.0,146.56,146.49,33.21623988]
[1642182377878,28.8545,146.57,146.49,33.21623988]
[1642182378279,29.1045,146.57,146.49,33.46623988]
[1642182378480,29.1045,146.57,146.49,33.21623988]
[1642182379087,31.8335,146.57,146.49,10.2362]
[1642182379279,42.0704,146.57,146.49,10.2362]
[1642182380081,31.8335,146.57,146.49,41.28304353]
[1642182380479,29.1045,146.57,146.49,41.28304353]
[1642182381480,29.1045,146.57,146.5,12.9642]
[1642182381683,29.1045,146.57,146.5,22.8242]
[1642182382281,29.1045,146.57,146.5,23.0742]
[1642182382682,29.1045,146.57,146.5,20.3452]
[1642182383785,29.1045,146.57,146.5,20.0952]
[1642182384787,23.1045,146.57,146.5,20.0952]
[1642182384986,23.1045,146.57,146.5,20.3452]
[1642182385386,23.1045,146.57,146.5,23.0742]
[1642182386287,23.1045,146.57,146.5,20.3452]
[1642182386489,23.1045,146.57,146.5,20.0952]
[1642182386888,23.1045,146.57,146.5,20.3452]
[1642182387588,23.1045,146.57,146.5,20.0952]
[1642182387988,29.1045,146.57,146.5,20.0952]
[1642182388589,2.729,146.56,146.5,9.86]
[1642182388792,2.729,146.56,146.5,10.11]
[1642182388988,8.979,146.56,146.5,10.11]
[1642182390898,6.25,146.56,146.5,9.86]
[1642182391098,2.729,146.55,146.45,12.589]
[1642182391299,25.9703,146.55,146.45,9.86]
[1642182391494,32.2203,146.55,146.45,10.11]
[1642182391698,32.2203,146.55,146.45,9.86]
[1642182391899,32.2203,146.55,146.46,23.4851239]
[1642182392098,32.2203,146.55,146.45,9.86]
[1642182392294,10.2392,146.54,146.45,9.86]
[1642182392595,2.73,146.53,146.45,9.86]
[1642182392896,27.0744,146.53,146.45,9.86]
[1642182393095,21.99565296,146.52,146.45,9.86]
[1642182393596,30.97565296,146.52,146.45,9.86]
[1642182393801,30.97565296,146.52,146.45,10.11]
[1642182394000,30.97565296,146.52,146.45,9.86]
[1642182394203,30.97565296,146.52,146.45,10.11]
[1642182394598,28.24565296,146.52,146.45,9.86]
[1642182395600,28.24565296,146.52,146.45,20.0991]
[1642182396001,28.24565296,146.52,146.45,20.3491]
[1642182397604,28.24565296,146.52,146.46,2.73]
[1642182397832,28.24565296,146.52,146.46,9.86]
[1642182398005,28.24565296,146.52,146.46,10.11]
[1642182400707,6.25,146.52,146.46,9.86]
[1642182400907,6.25,146.52,146.46,10.11]
[1642182401108,0.25,146.52,146.46,10.11]
[1642182401308,6.25,146.52,146.46,12.84]
[1642182402009,6.25,146.52,146.46,23.0784]
[1642182402508,6.0,146.52,146.46,23.0784]
[1642182402708,6.0,146.53,146.46,23.0784]
[1642182403109,30.1537,146.56,146.46,23.0784]
[1642182403909,30.4037,146.56,146.46,23.3384]
[1642182404109,30.1537,146.56,146.46,23.0784]
[1642182404513,30.1537,146.56,146.46,20.3484]
[1642182405513,30.4037,146.56,146.46,20.3484]
[1642182406312,40.6413,146.56,146.46,20.3484]
[1642182408417,34.6413,146.56,146.46,20.3484]
[1642182409219,2.73,146.55,146.46,20.3484]
[1642182409622,2.98,146.55,146.46,20.3484]
[1642182409820,8.98,146.55,146.46,20.3484]
[1642182411423,8.98,146.55,146.46,23.0784]
[1642182412521,19.2181,146.55,146.46,23.0784]
[1642182412721,19.2181,146.55,146.46,22.8284]
[1642182413546,19.2181,146.55,146.46,20.0984]
[1642182414045,19.2181,146.55,146.46,20.3484]
[1642182416350,19.2181,146.55,146.46,20.0984]
[1642182416547,19.2181,146.55,146.46,9.86]
[1642182418848,19.2181,146.55,146.46,10.11]
[1642182419048,23.9916,146.54,146.46,9.86]
[1642182419348,23.9916,146.54,146.46,20.0984]
[1642182419549,30.2416,146.54,146.46,20.0984]
[1642182420047,40.4805,146.54,146.46,20.0984]
[1642182420447,2.73,146.53,146.46,20.0984]
[1642182420647,2.73,146.53,146.46,9.86]
[1642182420847,8.98,146.53,146.46,9.86]
[1642182421249,19.2197,146.53,146.46,9.86]
[1642182422649,8.98,146.53,146.46,9.86]
[1642182423749,6.25,146.53,146.46,9.86]
[1642182423951,0.25,146.53,146.46,9.86]
[1642182424149,30.2416,146.54,146.46,9.86]
[1642182424351,30.2416,146.54,146.46,20.0982]
[1642182425052,29.9916,146.54,146.46,20.3482]
[1642182425852,29.9916,146.54,146.46,20.0982]
[1642182426051,40.2305,146.54,146.46,9.86]
[1642182426253,2.73,146.53,146.46,9.86]
[1642182426453,8.98,146.53,146.46,9.86]
[1642182427052,19.2197,146.53,146.46,9.86]
[1642182431061,19.2197,146.53,146.44,10.2392]
[1642182431259,22.5619,146.52,146.44,10.2392]
[1642182431462,20.51968498,146.51,146.44,10.2392]
[1642182431861,26.76968498,146.51,146.44,10.2392]
[1642182433761,24.03968498,146.51,146.44,10.2392]
[1642182433963,24.03968498,146.51,146.44,20.0992]
[1642182434165,23.78968498,146.51,146.44,20.0992]
[1642182435464,2.73,146.5,146.44,20.0992]
[1642182435866,2.98,146.5,146.44,20.0992]
[1642182440673,0.25,146.5,146.44,20.0992]
[1642182441069,24.03968498,146.51,146.44,20.0992]
[1642182441470,6.25,146.51,146.44,20.0992]
[1642182441771,6.25,146.51,146.44,28.1052]
[1642182442071,0.25,146.51,146.44,28.3652]
[1642182442269,6.0,146.53,146.44,30.05636865]
[1642182442470,8.73,146.54,146.45,67.59]
[1642182442670,6.0,146.54,146.49,10.236]
[1642182443069,57.492331,146.55,146.49,10.236]
[1642182443670,57.742331,146.55,146.49,10.236]
[1642182444672,57.742331,146.55,146.47,2.73]
[1642182444873,10.2403,146.52,146.44,12.59]
[1642182445072,24.7993,146.52,146.44,9.86]
[1642182445274,27.5293,146.52,146.44,9.86]
[1642182451678,27.5293,146.52,146.42,24.6806]
[1642182451882,22.6465,146.51,146.42,24.9306]
[1642182452078,10.242,146.5,146.41,2.73]
[1642182452279,21.6693821,146.49,146.4,2.751]
[1642182452479,45.1072821,146.49,146.4,2.751]
[1642182452680,51.1072821,146.49,146.4,2.751]
[1642182453179,2.731,146.48,146.4,0.02]
[1642182453582,24.1101,146.47,146.4,0.02]
[1642182453781,2.731,146.46,146.4,0.02]
[1642182453979,2.981,146.46,146.4,0.02]
[1642182454179,8.981,146.46,146.4,0.02]
[1642182456081,6.25,146.46,146.4,0.02]
[1642182456382,16.4944,146.46,146.4,0.02]
[1642182456582,6.25,146.46,146.4,0.02]
[1642182457183,0.25,146.46,146.4,0.02]
[1642182457384,6.25,146.46,146.4,0.02]
[1642182457988,0.25,146.46,146.4,0.02]
[1642182458388,0.25,146.47,146.4,0.02]
[1642182458592,2.731,146.46,146.4,0.02]
[1642182458788,29.0373,146.48,146.4,0.02]
[1642182458789,2.731,146.47,146.4,0.02]
[1642182458989,8.981,146.47,146.4,0.02]
[1642182459388,8.981,146.47,146.4,10.2625]
[1642182462522,8.981,146.47,146.4,0.02]
[1642182464623,19.2248,146.47,146.4,0.02]
[1642182464823,23.5158,146.46,146.4,0.02]
[1642182465023,2.731,146.45,146.4,0.02]
[1642182465423,2.981,146.45,146.4,0.02]
[1642182465623,8.981,146.45,146.4,0.02]
[1642182470539,6.25,146.45,146.4,0.02]
[1642182471645,0.25,146.45,146.4,0.02]
[1642182471835,6.25,146.45,146.4,0.02]
[1642182472435,0.25,146.45,146.4,0.02]
[1642182472636,6.25,146.45,146.4,0.02]
[1642182473337,0.25,146.45,146.4,0.02]
[1642182473539,6.0,146.45,146.4,0.02]
[1642182473939,0.25,146.45,146.4,0.02]
[1642182474939,42.7413,146.46,146.4,0.02]
[1642182479741,44.44207588,146.46,146.4,0.02]
[1642182480844,42.4913,146.46,146.4,0.02]
[1642182481443,1.87741737,146.44,146.4,0.02]
[1642182481844,18.12351737,146.44,146.4,0.02]
[1642182482447,16.2461,146.44,146.4,0.02]
[1642182482947,16.4961,146.44,146.4,0.02]
[1642182483346,25.11747904,146.43,146.4,0.02]
[1642182483549,31.36747904,146.43,146.4,0.02]
[1642182485648,41.61407904,146.43,146.4,0.02]
[1642182493888,32.0,146.42,146.37,1.9369279]
[1642182494091,10.2494,146.4,146.37,1.9369279]
[1642182494291,10.2494,146.4,146.35,4.74755692]
[1642182494490,16.4994,146.4,146.35,2.01655692]
[1642182495693,16.4994,146.4,146.35,0.07962902]
[1642182499995,16.2494,146.4,146.35,0.07962902]
[1642182500193,6.0,146.4,146.35,0.07962902]
[1642182500597,40.9163,146.42,146.35,0.07962902]
[1642182501498,41.1663,146.42,146.35,2.01655692]
[1642182502497,43.8983,146.42,146.35,2.01655692]
[1642182504097,43.8983,146.42,146.35,0.07962902]
[1642182512005,43.8983,146.42,146.35,2.01655692]
[1642182516611,43.8983,146.42,146.35,0.07962902]
[1642182518409,33.6505,146.42,146.35,0.07962902]
[1642182519014,27.6505,146.42,146.35,5.72755966]
[1642182519216,33.6505,146.42,146.35,7.66448756]
[1642182519815,8.982,146.42,146.35,95.36018756]
[1642182520016,8.732,146.42,146.35,95.87018756]
[1642182520216,25.11747904,146.43,146.36,2.732]
[1642182520517,25.11747904,146.43,146.36,2.982]
[1642182520518,31.11747904,146.43,146.36,2.982]
[1642182520716,6.0,146.43,146.36,2.982]
[1642182520920,6.0,146.43,146.37,77.8344]
[1642182521117,6.0,146.44,146.37,10.2444]
[1642182521319,0.25,146.43,146.37,10.4944]
[1642182521519,0.25,146.44,146.37,10.4944]
[1642182521946,25.91567715,146.44,146.37,12.4313279]
[1642182522346,31.91567715,146.44,146.37,12.4313279]
[1642182523548,32.16567715,146.44,146.37,12.4313279]
[1642182527448,32.16567715,146.44,146.37,2.1869279]
[1642182529850,31.91567715,146.44,146.37,1.9369279]
[1642182530053,31.91567715,146.44,146.37,2.1869279]
[1642182530254,31.91567715,146.44,146.37,1.9369279]
[1642182530451,31.91567715,146.44,146.37,2.1869279]
[1642182531854,32.16567715,146.44,146.37,2.1869279]
[1642182532854,32.16567715,146.44,146.37,12.4313279]
[1642182533858,31.91567715,146.44,146.37,12.4313279]
[1642182534255,31.91567715,146.44,146.37,12.1813279]
[1642182534455,31.91567715,146.44,146.37,12.4313279]
[1642182535558,32.16567715,146.44,146.37,12.4313279]
[1642182541867,32.16567715,146.44,146.37,80.0213279]
[1642182548098,32.16567715,146.44,146.37,86.0213279]
[1642182550502,32.16567715,146.44,146.37,80.0213279]
[1642182556913,32.16567715,146.44,146.37,12.1813279]
[1642182557114,32.16567715,146.44,146.37,1.9369279]
[1642182557313,2.732,146.43,146.37,1.9369279]
[1642182557514,33.6097,146.43,146.37,1.9369279]
[1642182557714,35.31047588,146.43,146.37,1.9369279]
[1642182558115,10.248,146.41,146.37,1.9369279]
[1642182558515,16.498,146.41,146.37,1.9369279]
[1642182558715,2.732,146.4,146.37,1.9369279]
[1642182558915,1.25417068,146.39,146.35,0.07962902]
[1642182559149,22.45831746,146.38,146.35,0.07962902]
[1642182559516,25.4728,146.4,146.36,6.06439993]
[1642182559817,22.9908,146.4,146.36,6.06439993]
[1642182560216,22.7408,146.4,146.36,6.06439993]
[1642182560423,1.87741737,146.41,146.36,6.06439993]
[1642182561620,2.12741737,146.41,146.36,6.06439993]
[1642182561819,2.982,146.41,146.36,6.06439993]
[1642182562220,2.982,146.41,146.35,0.07962902]
[1642182563120,8.982,146.41,146.35,0.07962902]
[1642182563519,2.982,146.41,146.35,0.07962902]
[1642182563719,6.25,146.41,146.35,0.07962902]
[1642182563922,0.25,146.41,146.35,0.07962902]
[1642182564123,2.732,146.42,146.35,0.07962902]
[1642182564322,1.87741737,146.43,146.36,9.86]
[1642182564520,1.87741737,146.43,146.36,10.11]
[1642182564720,1.87741737,146.43,146.37,67.59]
[1642182564919,1.87741737,146.43,146.37,79.14961002]
[1642182565120,1.87741737,146.43,146.38,1.69961002]
[1642182565323,1.87741737,146.43,146.39,9.86]
[1642182565522,0.00975474,146.46,146.43,10.2391]
[1642182565725,0.00975474,146.46,146.44,18.65539993]
[1642182565922,0.00975474,146.5,146.44,20.61500995]
[1642182566124,0.00975474,146.5,146.44,20.86500995]
[1642182566328,0.00975474,146.5,146.44,26.86500995]
[1642182566523,0.00975474,146.5,146.44,34.22092427]
[1642182566923,0.00975474,146.5,146.45,10.2362]
[1642182567127,0.00975474,146.5,146.46,12.59]
[1642182567324,24.78595578,146.52,146.46,12.59]
[1642182567523,24.78595578,146.52,146.46,12.84]
[1642182567724,24.78595578,146.52,146.46,10.11]
[1642182567934,24.78595578,146.52,146.46,9.86]
[1642182567935,31.03595578,146.52,146.46,9.86]
[1642182569024,2.73,146.51,146.46,9.86]
[1642182569427,2.98,146.51,146.46,9.86]
[1642182570025,8.98,146.51,146.46,9.86]
[1642182570425,8.98,146.51,146.43,9.86]
[1642182570426,19.2211,146.51,146.43,9.86]
[1642182570624,43.9776,146.51,146.43,9.86]
[1642182570826,1.40392925,146.5,146.43,9.86]
[1642182571024,2.731,146.49,146.42,2.73]
[1642182571225,43.0,146.48,146.41,9.86]
[1642182571425,2.731,146.47,146.39,9.86]
[1642182571625,25.727,146.48,146.39,9.86]
[1642182571825,0.25,146.47,146.39,9.86]
[1642182572026,2.731,146.46,146.39,9.86]
[1642182572225,2.731,146.47,146.39,9.86]
[1642182572425,24.53275732,146.46,146.39,9.86]
[1642182572628,24.53275732,146.46,146.39,20.103]
[1642182572826,24.53275732,146.46,146.39,9.86]
[1642182573027,2.731,146.45,146.39,9.86]
[1642182573427,2.981,146.45,146.36,9.86]
[1642182574025,13.2262,146.45,146.36,9.86]
[1642182574227,13.2262,146.45,146.35,0.07962902]
[1642182574428,36.4248,146.45,146.35,0.07962902]
[1642182575434,42.4248,146.45,146.35,0.07962902]
[1642182578932,66.6337,146.45,146.35,0.07962902]
[1642182580445,10.2494,146.4,146.35,0.07962902]
[1642182580638,23.76374214,146.39,146.35,0.07962902]
[1642182580838,6.25,146.4,146.35,0.07962902]
[1642182581037,0.25,146.39,146.35,0.07962902]
[1642182581664,12.9786,146.43,146.35,10.32542902]
[1642182581864,30.92236988,146.43,146.35,10.32542902]
[1642182582066,30.92236988,146.43,146.36,2.732]
[1642182582564,24.92236988,146.43,146.36,2.732]
[1642182582766,24.92236988,146.43,146.37,10.2444]
[1642182582966,0.25,146.43,146.37,10.4944]
[1642182583166,0.25,146.43,146.37,17.5164]
[1642182583365,53.4075,146.45,146.37,17.5164]
[1642182583566,53.4075,146.45,146.37,17.2664]
[1642182583768,53.4075,146.45,146.37,17.5164]
[1642182583968,28.77495868,146.44,146.37,17.5164]
[1642182584167,28.77495868,146.44,146.37,10.2444]
[1642182584367,28.77495868,146.44,146.37,10.4944]
[1642182584770,29.02495868,146.44,146.37,10.4944]
[1642182585069,35.02495868,146.44,146.37,10.4944]
[1642182585868,29.02495868,146.44,146.37,10.4944]
[1642182589073,28.77495868,146.44,146.37,10.2444]
[1642182589472,28.77495868,146.44,146.37,10.4944]
[1642182589976,34.77495868,146.44,146.37,0.25]
[1642182590377,35.02495868,146.44,146.36,2.982]
[1642182590574,35.02495868,146.44,146.36,12.842]
[1642182591775,35.02495868,146.44,146.36,12.592]
[1642182592578,37.75695868,146.44,146.36,9.86]
[1642182593379,48.00275868,146.44,146.36,9.86]
[1642182594577,48.00275868,146.44,146.36,20.3552]
[1642182594978,48.00275868,146.44,146.36,20.1052]
[1642182595181,48.00275868,146.44,146.36,20.3552]
[1642182595578,37.75695868,146.44,146.36,20.3552]
[1642182595778,35.02495868,146.44,146.36,20.3552]
[1642182596581,47.4075,146.45,146.36,20.3552]
[1642182596787,10.2436,146.48,146.39,10.2427]
[1642182596982,0.25,146.45,146.39,10.4927]
[1642182597182,0.25,146.45,146.39,10.2427]
[1642182597383,0.25,146.45,146.39,10.4927]
[1642182597585,0.25,146.45,146.39,10.2427]
[1642182597785,0.25,146.45,146.36,12.591]
[1642182597984,27.225,146.46,146.37,10.2438]
[1642182598185,33.225,146.46,146.37,9.86]
[1642182598986,10.2452,146.45,146.37,9.86]
[1642182599187,2.732,146.44,146.37,9.86]
[1642182599586,2.982,146.44,146.37,9.86]
[1642182600189,8.982,146.44,146.37,9.86]
[1642182600416,6.25,146.44,146.37,20.3544]
[1642182600617,6.25,146.44,146.37,20.1044]
[1642182600815,0.25,146.44,146.38,5.75616648]
[1642182601020,33.226,146.46,146.38,6.00616648]
[1642182601216,30.494,146.46,146.38,6.00616648]
[1642182601916,30.494,146.46,146.38,16.24926648]
[1642182602118,30.494,146.46,146.39,2.731]
[1642182602317,6.25,146.46,146.39,2.731]
[1642182602520,0.25,146.46,146.39,20.86961002]
[1642182602717,6.25,146.46,146.39,20.86961002]
[1642182602919,6.25,146.46,146.39,19.17]
[1642182603120,6.0,146.46,146.39,19.17]
[1642182603318,29.701,146.48,146.39,29.6728]
[1642182603518,6.25,146.48,146.39,29.6728]
[1642182603919,6.25,146.48,146.39,29.4128]
[1642182604120,0.25,146.48,146.39,29.6728]
[1642182604318,6.25,146.48,146.39,29.4128]
[1642182604921,0.25,146.48,146.39,29.4128]
[1642182605118,6.25,146.48,146.39,29.4128]
[1642182605720,0.25,146.48,146.39,29.4128]
[1642182605921,6.25,146.48,146.39,29.4128]
[1642182606119,6.0,146.48,146.39,29.4128]
[1642182606320,6.25,146.48,146.39,29.4128]
[1642182606725,0.25,146.48,146.39,29.4128]
[1642182606922,0.25,146.48,146.39,29.6728]
[1642182607521,66.37261296,146.5,146.39,29.6728]
[1642182608823,31.0928,146.5,146.4,67.59]
[1642182609022,25.0928,146.5,146.41,9.86]
[1642182609223,0.25,146.5,146.44,10.2394]
[1642182609424,0.25,146.5,146.44,17.1044]
[1642182609622,6.25,146.51,146.44,17.1044]
[1642182609823,32.2368,146.53,146.45,22.0251204]
[1642182610623,32.2368,146.53,146.45,32.2632204]
[1642182611122,32.4868,146.53,146.45,32.2632204]
[1642182612023,32.2368,146.53,146.45,32.2632204]
[1642182612625,32.2368,146.53,146.45,32.5132204]
[1642182612825,26.2368,146.53,146.45,32.5132204]
[1642182613227,26.2368,146.53,146.45,32.2632204]
[1642182613429,26.4868,146.53,146.45,32.2632204]
[1642182614727,26.4868,146.53,146.45,38.2612204]
[1642182614928,26.4868,146.53,146.46,9.86]